Cogmind - Beta 14 @@@ ROGUE MODE // 2025.03.26 @ 19:00:19 Player: GiggleBox Result: Destroyed by G-34 Mercenary with Small Laser Performance ------------- Evolutions (0) 0 Regions Visited (2) 400 Robots Destroyed (26) 130 Value Destroyed (457) 457 Prototype IDs (2) 40 Alien Tech Used (0) 0 Bonus (-10) -10 TOTAL SCORE: 1017 Bonus ------- Friendly Fire -10 Cogmind --------- Core Integrity 0/250 Matter 230/300 Energy 95/125 System Corruption 4% Temperature Cool (31) Movement Core (450) Ox8 Location -10/Mines Parts ------- > --- POWER (1) -------- Light Ion Engine > --- PROPULSION (2) --- (None) > --- UTILITY (2) ------ Heat Sink Large Storage Unit > --- WEAPON (2) ------- Small Laser Small Laser > --- INVENTORY (15) --- Aluminum Leg Aluminum Leg Compact Wheel Structural Scanner Seismic Detector Grenade Launcher Peak State ------------ > --- POWER ------------ Ion Engine > --- PROPULSION ------- Compact Wheel Compact Wheel > --- UTILITY ---------- Improved Heat Sink Large Storage Unit > --- WEAPON ----------- Medium Laser Small Laser > --- INVENTORY -------- Ion Engine Light Ion Engine Aluminum Leg Aluminum Leg Heat Sink Structural Scanner Seismic Detector Small Laser Small Laser Grenade Launcher [Rating: 10] Favorites ----------- Power Ion Engine Engine Ion Engine Propulsion Compact Wheel Leg Aluminum Leg Wheel Compact Wheel Utility Large Storage Unit Device Improved Heat Sink Storage Large Storage Unit Weapon Small Laser Energy Gun Small Laser Launcher Grenade Launcher Build | -11 -10 -10 ------- Run | Yrd Mat Min Slots Evolved . | . . . Power . | . . . Propulsion . | . . . Utility . | . . . Weapon . | . . . Parts Attached 28 | 9 4 15 Power 5 | 1 . 4 Engine 5 | 1 . 4 Core . | . . . Reactor . | . . . Propulsion 7 | 4 . 3 Treads . | . . . Leg 5 | 2 . 3 Wheel 2 | 2 . . Hover . | . . . Flight . | . . . Utility 6 | 2 3 1 Device 4 | 1 2 1 Storage 2 | 1 1 . Processor . | . . . Hackware . | . . . Protection . | . . . Artifact . | . . . Weapon 10 | 2 1 7 Energy Gun 8 | 2 1 5 Energy Cannon . | . . . Ballistic Gun . | . . . Ballistic Cannon . | . . . Launcher 2 | . . 2 Special Weapon . | . . . Impact Weapon . | . . . Slashing Weapon . | . . . Piercing Weapon . | . . . Special Melee Weapon . | . . . Unidentified Prototypes . | . . . Parts Lost 11 | . . 11 Power 4 | . . 4 Propulsion 3 | . . 3 Utility 1 | . . 1 Weapon 3 | . . 3 Highest Loss Streak 5 | . . 5 To Critical Strikes . | . . . Average Slot Usage (%) 98 | . 100 96 Engine 13 | . 14 13 Leg 14 | . . 23 Wheel 13 | . 28 3 Device 13 | . 14 13 Storage 14 | . 14 14 Energy Gun 26 | . 28 25 Peak Build Rating 10 | 7 10 10 Average Rating 7 | 4 7 8 On Entrance 5 | . 7 10 Naked Turns . | . . . Heaviest Build 29 | 13 29 28 Greatest Support 32 | 32 32 32 Greatest Overweight (x) 1 | . . 1 Average Overweight (x) . | . . . Largest Inventory Capacity 15 | 8 15 15 Average Capacity 12 | 6 11 15 Most Carried 10 | 4 10 10 Average Carried 7 | 2 7 8 Final Capacity 15 | 8 15 15 Final Carried 10 | 4 10 6 Class Distribution -------------------- 100% | Mutant Dominant Class ---------------- Mutant | -10/Materials Mutant | -10/Mines Resources | -11 -10 -10 ----------- Run | Yrd Mat Min Matter Collected 435 | 255 75 105 Remotely . | . . . Salvage Created 726 | 159 95 472 Parts 47 | 11 4 32 Haulers Intercepted . | . . . Recyclers Shooed . | . . . Parts Field Recycled . | . . . Retrieved Matter . | . . . Parts Self-Destructed . | . . . Prevented . | . . . Kills | -11 -10 -10 ------- Run | Yrd Mat Min Combat Hostiles Destroyed 18 | . 3 15 Guns 15 | . 3 12 AOE 3 | . . 3 Classes Destroyed 6 | 3 2 1 Worker 1 | 1 . . Builder 1 | . . 1 Tunneler 4 | 3 . 1 Recycler 2 | 1 . 1 Swarmer 10 | . 1 9 Grunt 8 | . 2 6 Best Kill Streak 5 | 5 2 5 Combat Bots Only 3 | . 2 3 Max Kills in Single Turn 3 | 2 1 3 Gunslinging . | . . . Exploded 3 | . . 3 Melee . | . . . Uniques/NPCs Destroyed . | . . . Combat | -11 -10 -10 -------- Run | Yrd Mat Min Hostile Shots Fired 142 | . 19 123 Missed 37 | . 6 31 Damage Taken 1174 | . 162 1012 Core 258 | . 18 240 Absorbed by Shields . | . . . Core Remaining (%) 100 | 100 . . Volleys Fired 70 | 7 11 52 Largest 2 | 2 2 2 Hottest 90 | 80 90 90 Shots Fired 129 | 14 22 93 Gun 125 | 14 22 89 Cannon . | . . . Launcher 4 | . . 4 Special . | . . . Kinetic . | . . . Thermal 125 | 14 22 89 Explosive 4 | . . 4 Electromagnetic . | . . . Robot Hit Streak 11 | 5 5 11 Robot Miss Streak 4 | 1 3 4 Penetration Max . | . . . Secondary Targets 2 | . . 2 Max Gunslinging Chain 1 | . . 1 Shots Hit Robots 80 | 9 13 58 Core Hits 42 | 6 6 30 Critical Kills . | . . . Critical Parts Destroyed . | . . . Critical Strikes 1 | . 1 . Burn 1 | . 1 . Melee Attacks . | . . . Impact . | . . . Slashing . | . . . Piercing . | . . . Sneak Attacks . | . . . Combat Hostiles . | . . . Follow-up Attacks . | . . . Damage Inflicted 1221 | 111 171 939 Guns 971 | 111 171 689 Cannons . | . . . Explosions 222 | . . 222 Melee . | . . . Ramming 28 | . . 28 Kinetic . | . . . Thermal 971 | 111 171 689 Explosive 222 | . . 222 Electromagnetic . | . . . Impact . | . . . Slashing . | . . . Piercing . | . . . Highest Corruption 4 | . . 4 Average Corruption 4 | . . 4 Corruption Purged . | . . . Corruption Blocked . | . . . Effects 14 | . . 14 Message Errors 4 | . . 4 Matter Fused 3 | . . 3 Heat Flow Errors 1 | . . 1 Energy Discharges 3 | . . 3 Parts Rejected 1 | . . 1 Data Loss (minor) 1 | . . 1 Weapon Failures 1 | . . 1 Overload Shots . | . . . Overflow Damage 4 | . . 4 Projectiles . | . . . Explosions . | . . . Melee 4 | . . 4 Knockbacks . | . . . Impact . | . . . Kinetic . | . . . Secondary . | . . . Self-Inflicted Damage 42 | . . 42 Shots 1 | . . 1 Rammed 1 | . . 1 Targets Rammed 2 | . . 2 Kicked 1 | . . 1 Crushed . | . . . Highest Temperature 175 | 72 72 175 Average Temperature 33 | 28 35 35 Received Heat Transfer 441 | . 57 384 Siege Activations . | . . . Robots Corrupted 1 | . . 1 Combat Hostiles . | . . . Parts Fried 2 | . . 2 Impact Corruptions 1 | . . 1 Robots Melted . | . . . Combat Hostiles . | . . . Parts Melted 2 | . 1 1 Heat Transferred 2357 | 250 521 1586 Parts Sabotaged . | . . . Parts Stolen . | . . . Parts Stripped . | . . . Power Chain Reactions . | . . . Alert | -11 -10 -10 ------- Run | Yrd Mat Min Peak Influence 277 | 25 125 277 Initial 44 | . 16 44 Average 101 | 5 60 142 Maximum Alert Level 1 | . . 1 Low Security (%) 86 | 100 100 74 Level 1 13 | . . 25 Level 2 . | . . . Level 3 . | . . . Level 4 . | . . . Level 5 . | . . . High Security . | . . . Max Security . | . . . Squads Dispatched 1 | . . 1 Investigation 1 | . . 1 Extermination . | . . . Reinforcement . | . . . Assault . | . . . Garrison . | . . . Intercept . | . . . Searches Triggered . | . . . Construction Impeded . | . . . Haulers Reinforced . | . . . Active Scanning Responses . | . . . Cargo Convoy Interrupts . | . . . Stealth | -11 -10 -10 --------- Run | Yrd Mat Min Distress Signals 1 | . 1 . Communications Jammed . | . . . Distress Signals . | . . . Times Spotted 28 | . 12 16 Peak Tracking Total 4 | . 4 3 Tactical Retreats 2 | . 2 . Traps | -11 -10 -10 ------- Run | Yrd Mat Min Traps Triggered 1 | . 1 . Indirectly . | . . . Trap Hack Attempts . | . . . Triggered . | . . . Disarmed . | . . . Reprogrammed . | . . . Reused . | . . . Traps Extracted . | . . . Installed . | . . . Triggered . | . . . Machines | -11 -10 -10 ---------- Run | Yrd Mat Min Machines Disabled . | . . . Max in Single Turn . | . . . Machines Repaired . | . . . Machines Dismantled . | . . . Machines Sabotaged . | . . . Overloaded Fab Kills . | . . . Hacking | -11 -10 -10 --------- Run | Yrd Mat Min Machines Accessed 7 | . 6 1 Terminals 7 | . 6 1 Fabricators . | . . . Repair Stations . | . . . Recycling Units . | . . . Scanalyzers . | . . . Garrison Access . | . . . Total Hacks 26 | . 22 4 Successful 13 | . 13 . Failed 13 | . 9 4 Catastrophic 1 | . . 1 Database Lockouts . | . . . Manual 19 | . 19 . Terminals 26 | . 22 4 Fabricators . | . . . Repair Stations . | . . . Recycling Units . | . . . Scanalyzers . | . . . Garrison Access . | . . . Terminal Hacks 3 | . 3 . Prototype ID Bank 1 | . 1 . Terminal Index 1 | . 1 . Locate Traps 1 | . 1 . Fabricator Hacks . | . . . Repair Station Hacks . | . . . Recycling Unit Hacks . | . . . Scanalyzer . | . . . Garrison Access Hacks . | . . . Unauthorized Hacks 10 | . 10 . Terminals 10 | . 10 . Assimilate 1 | . 1 . Botnet 3 | . 3 . Operators 1 | . 1 . Skim 5 | . 5 . Fabricators . | . . . Repair Stations . | . . . Recycling Units . | . . . Scanalyzers . | . . . Garrison Access . | . . . Data Cores Recovered . | . . . Used . | . . . Hacking Detections 7 | . 6 1 Full Trace Events 2 | . 1 1 Feedback Events . | . . . Feedback Blocked . | . . . Robot Schematics Acquired . | . . . Robots Built . | . . . Authchips . | . . . Time . | . . . Total Robot Build Rating . | . . . Part Schematics Acquired . | . . . Parts Built . | . . . Authchips . | . . . Time . | . . . Total Part Build Rating . | . . . Parts Repaired . | . . . Time . | . . . Parts Recycled . | . . . Recycled Matter . | . . . Retrieved Matter . | . . . Retrieved Components . | . . . Parts Scanalyzed . | . . . Part Schematics Acquired . | . . . Parts Damaged . | . . . Bothacking | -11 -10 -10 ------------ Run | Yrd Mat Min Used RIF Installer . | . . . Robots Hacked . | . . . Non-combat . | . . . Combat . | . . . Robot Hacks Applied . | . . . Relay Couplers Released . | . . . Fabnet Peak Effective % . | . . . Robots Rewired . | . . . Allies Hacked . | . . . Hacks Repelled . | . . . Allies | -11 -10 -10 -------- Run | Yrd Mat Min Total Allies 1 | . 1 . Largest Group 1 | . 1 . Highest-Rated Group 10 | . 10 . Highest-Rated Ally 10 | . 10 . Total Orders . | . . . Ally Attacks . | . . . Total Damage . | . . . Kills . | . . . Allies Corrupted . | . . . Allies Melted . | . . . Intel | -11 -10 -10 ------- Run | Yrd Mat Min Robot Analysis Total . | . . . Derelict Logs Recovered . | . . . Drone Launches . | . . . Drone Recoveries . | . . . Exploration | -11 -10 -10 ------------- Run | Yrd Mat Min Turns Passed 1281 | 104 475 702 Spaces Moved 730 | 67 370 293 Core 6 | 6 . . Treads . | . . . Legs 276 | 12 . 264 Wheels 448 | 49 370 29 Hover . | . . . Flight . | . . . Fastest Speed 50 | 50 100 100 Average Speed 132 | 99 100 181 Slowest Speed 190 | 120 100 190 Overloaded Moves . | . . . Propulsion Burnouts . | . . . Robots Hopped . | . . . Cave-ins Triggered . | . . . Exploration Rate (%) 43 | 4 64 61 Regions Visited 2 Branch Regions 1 Pre-discovered Areas 2 | . 1 1 Known Exits Taken . | . . . Unknown Exits Taken 2 | 1 1 . Scrap Searched 2 | . . 2 Spaces Dug . | . . . Terrain Destroyed 16 | . . 16 Melee . | . . . Projectile . | . . . AOE 16 | . . 16 Terrain Rammed . | . . . Walls Destroyed . | . . . Machines Disabled . | . . . Actions | -11 -10 -10 --------- Run | Yrd Mat Min Total 907 | 87 453 367 Wait 64 | 1 61 2 Move 728 | 66 369 293 Hop . | . . . Pick Up 11 | 2 6 3 Fast Attach 12 | 9 . 3 Attach 7 | . . 7 Detach 2 | 2 . . Swap 9 | . 4 5 Drop 2 | . 2 . Fire 70 | 7 11 52 Melee . | . . . Ram 1 | . . 1 Kick 1 | . . 1 Crush . | . . . Escape Stasis . | . . . Rewire . | . . . Trap . | . . . Miscellaneous . | . . . Route ------- -11/Scrapyard -10/Materials (discovered 5 exits: *Mat x3 / *Min / Sub) -10/Mines History --------- Turn | Location | Event 5 | -11/Scrapyard | Discovered new exit (range 15) 105 | -11/Scrapyard | Entered Materials 145 | -10/Materials | Discovered new exit (range 13) 275 | -10/Materials | Discovered new exit (range 11) 304 | -10/Materials | Build established: Mutant 418 | -10/Materials | Learned location of Subcaves (-10) 470 | -10/Materials | Learned location of 2 exits from Subcaves 510 | -10/Materials | Learned 4 Recycling zone layouts 539 | -10/Materials | Identified exit to Materials 539 | -10/Materials | Identified exit to Subcaves 556 | -10/Materials | Learned 2 Storage zone layouts 563 | -10/Materials | Loaded intel: 11 trap records 580 | -10/Materials | Entered Mines 785 | -10/Mines | Core integrity fell below 50% 879 | -10/Mines | Learned location of Storage (-8) 1271 | -10/Mines | Core integrity fell below 20% 1282 | -10/Mines | Destroyed by G-34 Mercenary with Small Laser Last Messages --------------- 01109_ System corrupted: Matter fused (-8). 01145_ System corrupted: Matter fused (-7). 01164_ LFRP2P 17NNGOTA%%PNSVHH=%DP86GJZT 01215_ Connecting with Terminal... 01215_ Current location identified: Mines 01215_ ALERT: Suspicious activity at Terminal M001. Dispatching Investigation squad. 01245_ System corrupted: Aluminum Leg rejected. 01252_ Acquired Aluminum Leg. 01260_ Imp. Heat Sink destroyed. 01262_ Aluminum Leg destroyed. 01264_ Sml. Laser destroyed. 01265_ Heat Sink melted. 01265_ G-34 Mercenary destroyed. 01266_ Lgt. Ion Engine destroyed. 01268_ Aluminum Leg destroyed. 01269_ K-01 Serf collects debris. 01278_ G-34 Mercenary destroyed. 01278_ Switching to secondary target: G-34 Mercenary. 01280_ K-01 Serf collects debris. Map ----- +----------------------------------------------------+ | | | | | | | ????????????????????????????????????????? | | ????????????????????????????????????????? | | ????????????????????????????????????????? | | ????????????????????????????????????????? | | ????????????????????????????????????????? | | ????????????????????????????????????????? | | ????????????????????????????????????????? | | ??????????? ????????????????????????????? | | ??????????# ????????????????????????????? | | ??????????# ???????????????????????????? | | ??????????# #####??????????????????????? | | ??????????# ##?????????###?????????? | | ??????????# ?????????## ##????????? | | ??????????# k ?????????# #????????? | | ??????????# #?????????? ##???????? | | ??????????# """"%#??????????# #???????? | | ??????????# """" ##????????## #?????##? | | ??????????# """" ##?####### ####### ## | | ??????????# ### # | | ??????????## g | | ???????????####%=# ###### ## | | ??????????????#* ## ##??## ##? | | ??????????????# @### ##??## ##?? | | ?????????###??# #?## ###??## #??? | | ????######T#### #??# ##????# #??? | | ????# ## #??# ##?????# #??? | | ????# ## #??# ##??????# #### | | ????# """ ## #??# #???????## | | ????# """ ## #??# #????????## | | ????# """ #??# #????????## #### | | ????# #####??# #??????### ##??? | | ????# #??????# #??????# ##???? | | ???###########??????# #??????# #????? | | ??## ##????????????# #?######## #????? | | ??# ##???????????? ??? #??# #????? | | ??# #??????####??????? #??# #????? | | ???# ######## ##??????# #??# #????? | | ???## ## #??????# #??# ##???? | | ????## #??????# #??# ##??? | | ?????## ##??????# ##?# ##?? | | ??????## # #???????# #?# #?? | | ???????######### !#####???# #?## #?? | | ???????????????#%% # ##### #### ##? | | ???????????????# = # #### ## ## | | ?????????????### # = % | | ??????####??## [ %= | | ?????## ### = =%= = ! | +----------------------------------------------------+ Best States ------------- Heat Dissipation 39 Energy Generation 10 Energy Capacity 250 Matter Stores 300 Matter Capacity 300 Sight Range 16 Terrain Scan Density 10 Evasion (%) 55 Item Schematics ----------------- None Robot Schematics ------------------ None Fabricated ------------ Nothing Alien Tech Used ----------------- None Achievements -------------- None Challenges ------------ None Game ------ Seed DynamicBoreMatrix Manual? 0 Play Time 00:12:54 Cumulative 39.4 hours Start 2025.03.26 @ 18:50:52 End 2025.03.26 @ 19:00:19 Sessions 1 Manual Loads 0 Difficulty Rogue Special Mode None Game No. 47 Rogue 47 Adventurer 0 Explorer 0 Win Type - Total 0 Types 0/0/0/0/0/0/0/0/0 Lore% 9 Gallery% 31 Achievement% 26 Wizard Run 0 Options --------- Layout 0 ASCII 0 Keyboard 1 Movement Numpad Keybinds 0 Fullscreen 1 Font 24/Terminus Map View 76x50 Zoom Use 0% Tactical HUD 1 Map Filters NONE Filters NONE Steam 1 RUN: 360e65d1-6a70-47b6-850f-223e8d7328f9